fUST/lending_fUST_20240709
["ID","MTS","AMOUNT","RATE_DAILY","PERIOD"]
[331545987,1720477841419,-8143.42407526,0.00035,2]
[331545989,1720477841429,-1662.013679,0.00035,4]
[331545991,1720477841437,-151.0,0.00035,7]
[331545993,1720477841447,-151.0,0.00035,7]
[331545995,1720477841456,-161.834866,0.00035582,2]
[331545997,1720477841466,-18940.1170328,0.00035597,4]
[331545998,1720477841475,-37880.2340657,0.00035606,4]
[331546000,1720477841484,-156.744755,0.00035616,7]
[331546002,1720477841493,-156.744755,0.00035616,7]
[331546004,1720477841502,-151.0,0.00035616,7]
[331546006,1720477841511,-151.0,0.00035616,7]
[331546008,1720477841520,-151.0,0.00035616,7]
[331546009,1720477841531,-1736.827804,0.00035616,7]
[331546011,1720477841540,-1736.827804,0.00035616,7]
[331546013,1720477841549,-227.405288,0.00035616,7]
[331546015,1720477841558,-151.0,0.00035616,7]
[331546017,1720477841566,-32305.72,0.00035616,3]
[331546019,1720477841575,-26921.44,0.00035616,3]
[331546020,1720477841584,-8884.41971745,0.00035616,3]
[331546025,1720477841622,-3000.0,0.00016419,2]
[331546027,1720477841631,-13550.11028255,0.00035616,3]
[331546029,1720477841640,-735.49472631,0.00035999,4]
[331546031,1720477841650,-212.0,0.00036,2]
[331546033,1720477841659,-212.0,0.00036,2]
[331546035,1720477841669,-540.0734527,0.00036239,4]
[331546037,1720477841678,-150.0,0.00036291,2]
[331546039,1720477841688,-212.0,0.00036323,2]
[331546040,1720477841696,-715.10240633,0.00036351,4]
[331546041,1720477841706,-1405.0,0.00036639,2]
[331546042,1720477841715,-154.66746495,0.0003701,4]
[331546043,1720477841725,-154.66746495,0.0003701,4]
[331546044,1720477841734,-519.36691665,0.00037085,2]
[331546045,1720477841743,-155.46546424,0.00037085,4]
[331546046,1720477841752,-154.66746495,0.00037085,4]
[331546047,1720477841762,-196.57991598,0.00037085,4]
[331546049,1720477841771,-303.56968343,0.00037085,4]
[331546050,1720477841781,-394.16646551,0.00037259,4]
[331546052,1720477841791,-174.6635656,0.00037259,4]
[331546054,1720477841801,-643.35252863,0.00037259,4]
[331546060,1720477841855,-643.35252863,0.00037357,4]
[331546062,1720477841869,-193.50509403,0.00037357,120]
[331546064,1720477841878,-360.7748307,0.00037357,4]
[331546066,1720477841887,-154.66746495,0.00037523,4]
[331546068,1720477841896,-685.61425062,0.00037523,4]
[331546070,1720477841905,-306.4783646,0.00037999,2]
[331546072,1720477841915,-388.6305076,0.00038192,2]
[331546074,1720477841924,-756.13182,0.000382,26]
[331546075,1720477841933,-1106.09923172,0.0003839,2]
[331546077,1720477841942,-300.0,0.00038437,2]
[331546079,1720477841952,-151.0,0.0003849,14]
[331546081,1720477841961,-151.0,0.0003849,14]
[331546083,1720477841970,-166.433322,0.0003849,14]
[331546085,1720477841979,-352.456612,0.0003849,14]
[331546087,1720477841988,-352.456612,0.0003849,14]
[331546089,1720477841998,-151.0,0.0003849,14]
[331546091,1720477842008,-157.03548,0.0003849,14]
[331546092,1720477842017,-5141.6148537,0.00038517,5]
[331546094,1720477842031,-459069.2153,0.00038518,14]
[331546096,1720477842040,-96772.10991061,0.00038519,7]
[331546406,1720477844888,-32.80469044,0.0001818,2]
[331546877,1720477893286,525.39824529,0.00014999,2]
[331546879,1720477939325,213.03490535,0.00014999,2]
[331546880,1720478029318,176.78583678,0.00014999,2]
[331546882,1720478052612,525.39824529,0.00014999,2]
[331546883,1720478070334,211.19779235,0.00014999,2]
[331546886,1720478164939,303.56968343,0.00014999,2]
[331546887,1720478177474,174.6635656,0.00014999,2]
[331546888,1720478179574,196.57991598,0.00014999,2]
[331546889,1720478182783,193.50509403,0.00015,2]
[331546891,1720478192830,540.0734527,0.00014999,2]
[331546892,1720478200778,519.36691665,0.00014999,2]
[331546893,1720478202574,155.46546424,0.00014999,2]
[331546895,1720478225338,495.26386527,0.00014999,2]
[331546897,1720478236616,735.49472631,0.00014999,2]
[331546898,1720478241408,3293.37687449,0.0001,2]
[331546899,1720478259260,532.24050528,0.00014999,2]
[331546900,1720478260617,154.66746495,0.00014999,2]
[331546904,1720478403972,-185.66251223,0.00016255,2]
[331546905,1720478404001,-363.26206664,0.00016255,2]
[331546906,1720478404026,-934.8017749,0.00016255,2]
[331546909,1720478468974,-2729.46314623,0.00016255,2]
[331546912,1720478561165,934.8017749,0.00014999,2]
[331546913,1720478633774,154.83742071,0.00014999,2]
[331546914,1720478638502,244.31766943,0.00014999,2]
[331546916,1720478717563,1981.25710323,0.00014999,2]
[331546917,1720478728148,492.59913672,0.00014999,2]
[331546919,1720478779552,616.12823481,0.00014999,2]
[331546920,1720478787452,155.1618612,0.00014999,2]
[331546921,1720478807905,301.87129917,0.00014999,2]
[331546922,1720478810836,2833.91780134,0.00015,2]
[331546923,1720478818925,1597.25650539,0.00014999,2]
[331546924,1720478834776,214.18723696,0.00014999,2]
[331546925,1720478838716,908.54949828,0.00014999,2]
[331546926,1720478838748,227.68613074,0.00014999,2]
[331546927,1720478845384,154.76784823,0.00014999,2]
[331546928,1720478856513,155.377278,0.00014999,2]
[331546929,1720478859414,242.24109435,0.00014999,2]
[331546930,1720478886205,225.70347756,0.00014999,2]
[331546931,1720478903202,284.76615511,0.00014999,2]
[331546932,1720478903483,252.16904731,0.00014999,2]
[331546936,1720478985795,-407.25403552,0.00015303,2]
[331546961,1720479032745,-300.0,0.00015302,2]
[331546962,1720479032755,-300.0,0.00015302,2]
[331546963,1720479032764,-413.1028463,0.00015303,2]
[331546964,1720479032775,-2455.59413738,0.00015303,2]
[331546965,1720479032786,-2237.39414321,0.00015303,2]
[331546966,1720479032797,-10533.68875975,0.00015303,2]
[331546967,1720479032808,-3848.01,0.00015303,2]
[331547008,1720479037867,-5004.95607784,0.00015303,2]
[331547009,1720479037877,-188.5874536,0.00015774,2]
[331547010,1720479037887,-15119.27608757,0.00016155,2]
[331547011,1720479037896,-154.83742071,0.00016255,2]
[331547012,1720479037905,-973.64930219,0.00016255,2]
[331547013,1720479037915,-18838.6135349,0.00016306,2]
[331547014,1720479037925,-166.666666,0.00016494,2]
[331547015,1720479037934,-216.0,0.00016832,2]
[331547017,1720479037944,-166.666666,0.00016944,2]
[331547019,1720479037953,-3642.20644579,0.00017294,2]
[331547020,1720479037962,-247.36739656,0.00017294,2]
[331547021,1720479037972,-166.666666,0.00017394,2]
[331547022,1720479037982,-166.666666,0.00017843,2]
[331547023,1720479037991,-154.79948781,0.0001818,2]
[331547024,1720479038000,-154.79103211,0.0001818,2]
[331547025,1720479038013,-166.666666,0.00018293,2]
[331547026,1720479038022,-247.36739654,0.00018597,2]
[331547027,1720479038031,-166.666666,0.00018743,2]
[331547028,1720479038040,-516.87532715,0.000189,2]
[331547029,1720479038049,-812.92138686,0.00019,3]
[331547030,1720479038058,-161.577342,0.00019178,2]
[331547031,1720479038067,-161.577342,0.00019178,2]
[331547032,1720479038076,-3426.16567304,0.00019899,2]
[331547033,1720479038085,-247.36739654,0.000199,2]
[331547034,1720479038093,-482.2,0.0001998,3]
[331547035,1720479038102,-241.1,0.0001998,3]
[331547036,1720479038111,-723.33,0.0001998,3]
[331547037,1720479038120,-79491.8750611,0.0001999,2]
[331547038,1720479038129,-500.0,0.00019999,2]
[331547039,1720479038140,-600.85263221,0.00019999,2]
[331547040,1720479038149,-156.29640572,0.00019999,2]
[331547041,1720479038159,-237.14766358,0.00019999,2]
[331547042,1720479038168,-500.0,0.00019999,2]
[331547043,1720479038177,-337.6530843,0.00019999,2]
[331547044,1720479038186,-500.0,0.00019999,2]
[331547045,1720479038196,-460.73512318,0.00019999,2]
[331547046,1720479038205,-500.0,0.00019999,2]
[331547047,1720479038214,-500.0,0.00019999,2]
[331547048,1720479038223,-500.0,0.00019999,2]
[331547049,1720479038233,-500.0,0.00019999,2]
[331547050,1720479038242,-500.0,0.00019999,2]
[331547051,1720479038252,-515.6034176,0.00019999,2]
[331547052,1720479038262,-500.0,0.00019999,2]
[331547053,1720479038271,-500.0,0.00019999,2]
[331547054,1720479038281,-500.0,0.00019999,2]
[331547055,1720479038291,-500.0,0.00019999,2]
[331547056,1720479038300,-500.0,0.00019999,2]
[331547057,1720479038310,-500.0,0.00019999,2]
[331547058,1720479038319,-500.0,0.00019999,2]
[331547059,1720479038330,-500.0,0.00019999,2]
[331547060,1720479038339,-500.0,0.00019999,2]
[331547061,1720479038349,-423.59509623,0.00019999,2]
[331547062,1720479038358,-197.45790993,0.00019999,2]
[331547063,1720479038368,-600.0,0.00019999,2]
[331547064,1720479038378,-500.0,0.00019999,2]
[331547065,1720479038387,-352.11476102,0.00019999,2]
[331547066,1720479038396,-21000.67552534,0.0002,2]
[331547067,1720479038406,-428.141796,0.0002,2]
[331547068,1720479038416,-21326.96870083,0.0002,2]
[331547069,1720479038425,-763.61573457,0.0002,2]
[331547070,1720479038435,-52938.01275396,0.0002,2]
[331547071,1720479038445,-6401.55291816,0.0002,2]
[331547072,1720479038454,-97770.49385599,0.0002,2]
[331547073,1720479038463,-151.31839232,0.0002,2]
[331547074,1720479038473,-169.60808381,0.0002,2]
[331547075,1720479038484,-605.52412605,0.0002,2]
[331547076,1720479038496,-158.52108626,0.0002,2]
[331547077,1720479038507,-679.341744,0.00021096,2]
[331547078,1720479038516,-196.376149,0.00021096,2]
[331547079,1720479038526,-222.78102464,0.000212,2]
[331547080,1720479038535,-620.00377191,0.00021263,2]
[331547081,1720479038544,-3426.16567301,0.00021344,2]
[331547082,1720479038554,-964.4,0.0002135,3]
[331547083,1720479038564,-482.2,0.0002135,3]
[331547084,1720479038573,-3642.20644575,0.00022245,2]
[331547085,1720479038583,-620.0001886,0.00022326,2]
[331547086,1720479038592,-3426.16567301,0.00022789,2]
[331547087,1720479038601,-200.0,0.00023,2]
[331547088,1720479038611,-620.00000943,0.00023442,2]
[331547089,1720479038620,-516.87532715,0.000239,2]
[331547090,1720479038630,-3426.16567301,0.00024234,2]
[331547091,1720479038639,-19872.9687653,0.0002439,3]
[331547092,1720479038648,-44208.89522133,0.000244,2]
[331547093,1720479038658,-2650.09420639,0.00025,2]
[331547094,1720479038667,-190.62597405,0.00025,2]
[331547095,1720479038677,-154.69833824,0.00025,2]
[331547096,1720479038687,-150.0,0.00025029,2]
[331547097,1720479038696,-241.98105013,0.00025232,2]
[331547098,1720479038705,-19872.9687653,0.00025491,3]
[331547099,1720479038715,-52127.6117321,0.00025501,2]
[331547100,1720479038772,-250.0,0.00025577,2]
[331547101,1720479038789,-3426.16567301,0.00025679,2]
[331547102,1720479038798,-350.0,0.00026124,2]
[331547103,1720479038808,-450.0,0.00026672,2]
[331547104,1720479038818,-19872.9687653,0.00026865,3]
[331547105,1720479038828,-5808.14450636,0.000269,2]
[331547106,1720479038838,-163.9178479,0.00027123,2]
[331547107,1720479038848,-30000.0,0.00027184,2]
[331547108,1720479038858,-17255.76571528,0.00027184,2]
[331547109,1720479038868,-679.341744,0.00027195,2]
[331547110,1720479038877,-196.376149,0.00027195,2]
[331547111,1720479038887,-3642.20644575,0.00027197,2]
[331547112,1720479038897,-550.0,0.0002722,2]
[331547113,1720479038906,-500.0,0.00027397,2]
[331547114,1720479038917,-278.27514775,0.00027397,2]
[331547115,1720479038927,-500.0,0.00027397,2]
[331547116,1720479038937,-500.0,0.00027397,2]
[331547117,1720479038946,-500.0,0.00027397,2]
[331547118,1720479038956,-500.0,0.00027397,2]
[331547119,1720479038966,-500.0,0.00027397,2]
[331547120,1720479038976,-500.0,0.00027397,2]
[331547121,1720479038985,-500.0,0.00027397,2]
[331547122,1720479038994,-500.0,0.00027397,2]
[331547123,1720479039004,-475.63278309,0.00027397,2]
[331547124,1720479039014,-500.0,0.00027397,2]
[331547125,1720479039023,-500.0,0.00027397,2]
[331547126,1720479039032,-500.0,0.00027397,2]
[331547127,1720479039042,-500.0,0.00027397,2]
[331547128,1720479039052,-500.0,0.00027397,2]
[331547129,1720479039061,-500.0,0.00027397,2]
[331547130,1720479039071,-500.0,0.00027397,2]
[331547131,1720479039080,-500.0,0.00027397,2]
[331547132,1720479039091,-500.0,0.00027397,2]
[331547133,1720479039101,-500.0,0.00027397,2]
[331547134,1720479039110,-500.0,0.00027397,2]
[331547135,1720479039120,-500.0,0.00027397,2]
[331547136,1720479039131,-500.0,0.00027397,2]
[331547137,1720479039140,-500.0,0.00027397,2]
[331547138,1720479039150,-500.0,0.00027397,2]
[331547139,1720479039160,-500.0,0.00027397,2]
[331547140,1720479039170,-500.0,0.00027397,2]
[331547141,1720479039179,-500.0,0.00027397,2]
[331547142,1720479039190,-500.0,0.00027397,2]
[331547143,1720479039200,-500.0,0.00027397,2]
[331547144,1720479039210,-500.0,0.00027397,2]
[331547145,1720479039221,-500.0,0.00027397,2]
[331547146,1720479039232,-500.0,0.00027397,2]
[331547147,1720479039242,-165.2307468,0.00027397,120]
[331547148,1720479039253,-650.0,0.00027768,2]
[331547149,1720479039263,-750.0,0.00028316,2]
[331547150,1720479039273,-850.0,0.00028864,2]
[331547151,1720479039283,-516.87532715,0.000289,2]
[331547152,1720479039294,-950.0,0.00029412,2]
[331547153,1720479039304,-19872.9687653,0.00029783,3]
[331547154,1720479039314,-247.414595,0.000298,120]
[331547155,1720479039324,-11036.7095969,0.00029813,2]
[331547156,1720479039334,-10583.55970307,0.00029823,2]
[331547158,1720479039344,-352.456612,0.00029893,7]
[331547159,1720479039354,-352.456612,0.00029893,7]
[331547161,1720479039364,-151.0,0.00029893,7]
[331547162,1720479039374,-151.0,0.00029893,7]
[331547163,1720479039383,-151.0,0.00029893,7]
[331547164,1720479039393,-151.0,0.00029893,7]
[331547165,1720479039403,-1000.30001953,0.0002996,2]
[331547166,1720479039413,-19872.9687653,0.00029989,4]
[331547167,1720479039423,-151.0,0.00029989,7]
[331547168,1720479039434,-170.41373926,0.0003,4]
[331547169,1720479039444,-406.40861412,0.0003,3]
[331547170,1720479039453,-302.72681074,0.0003,30]
[331547172,1720479039463,-400.35358291,0.0003,2]
[331547173,1720479039473,-150.81170806,0.0003,7]
[331547174,1720479039486,-212.0,0.0003,2]
[331547175,1720479039496,-3642.20644575,0.00032148,2]
[331547176,1720479039510,-151.632729,0.00032178,7]
[331547177,1720479039519,-156.744755,0.00032178,7]
[331547178,1720479039530,-156.744755,0.00032178,7]
[331547179,1720479039539,-151.0,0.00032178,7]
[331547180,1720479039548,-268.723027,0.00032178,7]
[331547181,1720479039558,-268.723027,0.00032178,7]
[331547182,1720479039569,-151.0,0.00032178,7]
[331547183,1720479039580,-151.0,0.00032178,7]
[331547184,1720479039589,-151.0,0.00032178,7]
[331547185,1720479039599,-151.0,0.00032178,7]
[331547186,1720479039608,-150.0,0.00032512,2]
[331547187,1720479039618,-1405.0,0.00032512,2]
[331547188,1720479039627,-248.114,0.00032512,2]
[331547189,1720479039637,-151.74,0.00032512,2]
[331547190,1720479039647,-211.56,0.00032512,2]
[331547191,1720479039656,-1736.827804,0.00032877,7]
[331547192,1720479039666,-1736.827804,0.00032877,7]
[331547193,1720479039676,-150.0,0.00032877,2]
[331547194,1720479039685,-4000.0,0.00033,2]
[331547196,1720479039695,-212.0,0.00033,2]
[331547197,1720479039705,-212.0,0.00033,2]
[331547203,1720479039714,-679.341744,0.00033295,2]
[331547205,1720479039776,-196.376149,0.00033295,2]
[331547207,1720479039785,-25437.51296518,0.00033323,4]
[331547209,1720479039900,-312.2633,0.00033323,4]
[331547211,1720479039914,-13996.16126532,0.00033323,4]
[331547212,1720479039924,-596.662573,0.00033324,2]
[331547213,1720479039934,-596.662573,0.00033324,2]
[331547214,1720479039943,-151.0,0.00033324,7]
[331547215,1720479039953,-158.098734,0.00033324,7]
[331547216,1720479039963,-151.0,0.00033333,7]
[331547217,1720479039972,-151.0,0.00033333,7]
[331547218,1720479039981,-151.0,0.00033333,7]
[331547219,1720479039991,-151.0,0.00033333,7]
[331547220,1720479040001,-88722.45802687,0.00033333,2]
[331547221,1720479040011,-154.66746495,0.00034642,2]
[331547222,1720479040020,-371.60360594,0.00034642,4]
[331547223,1720479040030,-2857.01360726,0.00034688,4]
[331547225,1720479040040,-1282.14728249,0.00034728,12]
[331547227,1720479040050,-19872.9687653,0.0003489,4]
[331547229,1720479040059,-26461.57079407,0.000349,2]
[331547231,1720479040068,-352.456612,0.000349,7]
[331547233,1720479040079,-352.456612,0.000349,7]
[331547235,1720479040088,-151.0,0.000349,7]
[331547237,1720479040098,-151.0,0.000349,7]
[331547239,1720479040120,-157.03548,0.000349,7]
[331547241,1720479040130,-1736.827804,0.000349,7]
[331547243,1720479040141,-1736.827804,0.000349,7]
[331547245,1720479040151,-151.0,0.000349,7]
[331547246,1720479040161,-1180.70356094,0.00035,2]
[331547247,1720479040171,-208.78071998,0.00035259,4]
[331547248,1720479040180,-1431.50327782,0.00035292,2]
[331547249,1720479040190,-166.433322,0.000353,7]
[331547250,1720479040200,-151.0,0.000353,7]
[331547251,1720479040210,-596.662573,0.000353,2]
[331547252,1720479040219,-596.662573,0.000353,2]
[331547253,1720479040230,-227.405288,0.000353,7]
[331547254,1720479040240,-156.744755,0.000353,7]
[331547255,1720479040250,-156.744755,0.000353,7]
[331547256,1720479040261,-151.0,0.000353,7]
[331547257,1720479040271,-268.723027,0.000353,7]
[331547258,1720479040282,-268.723027,0.000353,7]
[331547259,1720479040292,-151.0,0.000353,7]
[331547260,1720479040302,-151.0,0.000353,7]
[331547261,1720479040312,-151.0,0.000353,7]
[331547262,1720479040322,-151.0,0.000353,7]
[331547263,1720479040331,-1197.52319115,0.000353,14]
[331547264,1720479040341,-1197.52319114,0.000353,14]
[331547265,1720479040351,-1197.52319114,0.000353,14]
[331547266,1720479040361,-1197.52319114,0.000353,14]
[331547267,1720479040370,-12181.83594817,0.000353,14]
[331547268,1720479040380,-12181.83594816,0.000353,14]
[331547269,1720479040389,-12181.83594816,0.000353,14]
[331547270,1720479040399,-12181.83594816,0.000353,14]
[331547271,1720479040408,-150.0,0.00035512,2]
[331547272,1720479040417,-1405.0,0.00035512,2]
[331547273,1720479040426,-151.0,0.00035616,7]
[331547274,1720479040435,-30535.96,0.00035616,3]
[331547275,1720479040444,-25446.63,0.00035616,3]
[331547276,1720479040453,-1274.83630791,0.00035999,4]
[331547277,1720479040463,-212.0,0.00036,2]
[331547278,1720479040472,-212.0,0.00036,2]
[331547279,1720479040482,-212.0,0.00036,2]
[331547280,1720479040495,-1484.11636857,0.00036351,4]
[331547281,1720479040505,-155.09561492,0.00037,4]
[331547282,1720479040515,-3642.20644575,0.000371,2]
[331547283,1720479040524,-1662.013679,0.00037259,4]
[331547284,1720479040534,-1662.013679,0.00037259,4]
[331547285,1720479040544,-1500.0,0.00037807,4]
[331547286,1720479040554,-1182.19313332,0.00037807,4]
[331547287,1720479040564,-1182.19313332,0.00037899,4]
[331547288,1720479040576,-366.0,0.00038147,2]
[331547289,1720479040586,-756.13182,0.000382,26]
[331547290,1720479040595,-5290.80510559,0.00038348,2]
[331547291,1720479040605,-300.0,0.00038445,2]
[331547292,1720479040614,-150.0,0.00038512,2]
[331547293,1720479040624,-1405.0,0.00038512,2]
[331547294,1720479040635,-5141.6148537,0.00038518,5]
[331547295,1720479040645,-268617.46112215,0.00038518,14]
[331547419,1720480232113,-151.11175224,0.00020996,2]
[331547420,1720480232123,-666.81812,0.00021096,2]
[331547421,1720480232132,-210.705622,0.00021096,2]
[331547422,1720480232141,-166.666666,0.00023625,2]
[331547423,1720480232150,-166.666666,0.00024269,2]
[331547424,1720480232159,-1717.8737618,0.00024376,2]
[331547425,1720480232236,-1331.8472577,0.00024385,2]
[331547426,1720480232245,-2094.20618757,0.00024411,2]
[331547428,1720480232602,-492.04,0.00024411,2]
[331547449,1720480238592,-413.75381243,0.00024411,2]
[331547450,1720480238602,-166.666666,0.00024913,2]
[331547451,1720480238686,-190.62597405,0.00025,2]
[331547452,1720480238697,-300.0,0.0002539,2]
[331547453,1720480238707,-223.0,0.0002539,2]
[331547454,1720480238718,-1879.79366269,0.00025391,2]
[331547455,1720480238728,-562.70801076,0.00025401,2]
[331547456,1720480238740,-1437.29198924,0.00025401,2]
[331547457,1720480238750,-24900.0,0.0002542,2]
[331547458,1720480238760,-22926.1,0.00025471,3]
[331547459,1720480238770,-5455.56459213,0.00025481,3]
[331547460,1720480238782,-14172.04350692,0.00025481,3]
[331547462,1720480240197,-9637.27190095,0.00025481,3]
[331547463,1720480240207,-27511.32,0.00025481,3]
[331547464,1720480240217,-14256.33593329,0.00025481,3]
[331547465,1720480240318,-2260.96411401,0.00025481,3]
[331547466,1720480240329,-33034.6000947,0.00025491,3]
[331547467,1720480240340,-9479.6946624,0.00025491,2]
[331547468,1720480240350,-250.0,0.00025491,2]
[331547469,1720480240361,-176.39165788,0.000255,2]
[331547470,1720480240370,-178.1051135,0.000255,2]
[331547471,1720480240380,-460.73512318,0.000255,2]
[331547472,1720480240389,-267.63807747,0.000255,2]
[331547473,1720480240399,-381.0656237,0.000255,2]
[331547474,1720480240409,-500.0,0.000255,2]
[331547475,1720480240419,-500.0,0.000255,2]
[331547476,1720480240428,-500.0,0.000255,2]
[331547477,1720480240438,-500.0,0.000255,2]
[331547478,1720480240447,-500.0,0.000255,2]
[331547479,1720480240456,-594.75242844,0.000255,2]
[331547480,1720480240466,-500.0,0.000255,2]
[331547481,1720480240475,-500.0,0.000255,2]
[331547482,1720480240485,-500.0,0.000255,2]
[331547483,1720480240494,-500.0,0.000255,2]
[331547484,1720480240504,-500.0,0.000255,2]
[331547485,1720480240514,-78441.19957992,0.00025501,2]
[331547486,1720480240524,-52127.6117321,0.00025501,2]
[331547487,1720480240534,-166.666666,0.00025557,2]
[331547488,1720480240543,-307.147609,0.00025584,2]
[331547489,1720480240553,-164.768494,0.00025744,2]
[331547490,1720480240563,-166.666666,0.00026201,2]
[331547491,1720480240573,-166.666666,0.00026846,2]
[331547492,1720480240584,-16517.3000473,0.00027174,3]
[331547493,1720480240595,-30000.0,0.00027184,2]
[331547494,1720480240606,-666.81812,0.00027195,2]
[331547495,1720480240616,-210.705622,0.00027195,2]
[331547496,1720480240626,-33034.6000947,0.00027387,3]
[331547497,1720480240637,-500.0,0.00027397,2]
[331547498,1720480240648,-500.0,0.00027397,2]
[331547499,1720480240658,-278.27514775,0.00027397,2]
[331547500,1720480240668,-719.35395025,0.00027397,2]
[331547501,1720480240679,-719.35395025,0.00027397,2]
[331547502,1720480240688,-719.35395025,0.00027397,2]
[331547503,1720480240699,-719.35395025,0.00027397,2]
[331547504,1720480240709,-719.35395025,0.00027397,2]
[331547505,1720480240719,-719.35395025,0.00027397,2]
[331547506,1720480240728,-719.35395025,0.00027397,2]
[331547507,1720480240738,-719.35395025,0.00027397,2]
[331547508,1720480240748,-719.35395025,0.00027397,2]
[331547509,1720480240759,-719.35395025,0.00027397,2]
[331547510,1720480240769,-719.35395025,0.00027397,2]
[331547511,1720480240778,-719.35395025,0.00027397,2]
[331547512,1720480240788,-719.35395025,0.00027397,2]
[331547513,1720480240798,-719.35395025,0.00027397,2]
[331547514,1720480240808,-719.35395025,0.00027397,2]
[331547515,1720480240817,-719.35395025,0.00027397,2]
[331547516,1720480240827,-719.35395025,0.00027397,2]
[331547517,1720480240837,-719.35395025,0.00027397,2]
[331547518,1720480240847,-719.35395025,0.00027397,2]
[331547519,1720480240857,-719.35395025,0.00027397,2]
[331547520,1720480240872,-719.35395025,0.00027397,2]
[331547521,1720480240884,-719.35395025,0.00027397,2]
[331547522,1720480240894,-719.35395025,0.00027397,2]
[331547523,1720480240904,-719.35395025,0.00027397,2]
[331547524,1720480240915,-719.35395025,0.00027397,2]
[331547525,1720480240925,-719.35395025,0.00027397,2]
[331547526,1720480240935,-719.35395025,0.00027397,2]
[331547527,1720480240948,-719.35395025,0.00027397,2]
[331547528,1720480240958,-719.35395025,0.00027397,2]
[331547529,1720480240970,-719.35395025,0.00027397,2]
[331547530,1720480240979,-719.35395025,0.00027397,2]
[331547531,1720480240989,-719.35395025,0.00027397,2]
[331547532,1720480241000,-719.35395025,0.00027397,2]
[331547533,1720480241011,-719.35395025,0.00027397,2]
[331547534,1720480241022,-719.35395025,0.00027397,2]
[331547535,1720480241031,-719.35395025,0.00027397,2]
[331547536,1720480241042,-719.35395025,0.00027397,2]
[331547537,1720480241055,-719.35395025,0.00027397,2]
[331547538,1720480241064,-719.35395025,0.00027397,2]
[331547539,1720480241074,-719.35395025,0.00027397,2]
[331547540,1720480241084,-719.35395025,0.00027397,2]
[331547541,1720480241093,-719.35395025,0.00027397,2]
[331547542,1720480241103,-719.35395025,0.00027397,2]
[331547543,1720480241113,-719.35395025,0.00027397,2]
[331547545,1720480241124,-165.2307468,0.00027397,120]
[331547547,1720480241133,-1879.79366265,0.00027451,2]
[331547548,1720480241143,-1879.79366265,0.00029511,2]
[331547550,1720480241152,-150.0,0.00029643,2]
[331547552,1720480241161,-150.0,0.00029769,2]
[331547554,1720480241171,-17255.76571528,0.00029803,2]
[331547555,1720480241180,-11036.7095969,0.00029903,2]
[331547557,1720480241190,-10583.55970307,0.00029999,2]
[331547559,1720480241199,-170.41373926,0.0003,4]
[331547561,1720480241263,-212.0,0.0003,2]
[331547562,1720480241272,-202.27679859,0.00030191,2]
[331547563,1720480241283,-250.0,0.00030317,2]
[331547564,1720480241292,-350.0,0.00030865,2]
[331547565,1720480241302,-450.0,0.00031413,2]
[331547566,1720480241311,-1879.79366265,0.00031571,2]
[331547567,1720480241322,-550.0,0.00031961,2]
[331547568,1720480241332,-650.0,0.00032508,2]
[331547569,1720480241341,-235.629,0.00032512,2]
[331547570,1720480241351,-241.754,0.00032512,2]
[331547571,1720480241361,-150.0,0.0003252,2]
[331547572,1720480241370,-1405.0,0.0003252,2]
[331547573,1720480241379,-212.0,0.00033,2]
[331547574,1720480241389,-750.0,0.00033056,2]
[331547575,1720480241399,-212.0,0.00033295,2]
[331547576,1720480241408,-666.81812,0.00033295,2]
[331547577,1720480241417,-210.705622,0.00033295,2]
[331547578,1720480241426,-850.0,0.00033604,2]